fUST/lending_fUST_20241208
["ID","MTS","AMOUNT","RATE_DAILY","PERIOD"]
[344600634,1733597447220,-374.484276,0.00024931,7]
[344600635,1733597447230,-374.484276,0.00024931,7]
[344600636,1733597447239,-374.484276,0.00024931,7]
[344600637,1733597447248,-500.0,0.00024931,2]
[344600638,1733597447257,-151.0,0.00024931,7]
[344600639,1733597447268,-500.0,0.00024931,2]
[344600640,1733597447277,-151.0,0.00024931,7]
[344600641,1733597447286,-151.0,0.00024931,7]
[344600642,1733597447295,-500.0,0.00024931,2]
[344600643,1733597447304,-705.91,0.00024931,2]
[344600644,1733597447314,-500.0,0.00024931,2]
[344600645,1733597447323,-10337.44,0.00024931,2]
[344600646,1733597447333,-813.98,0.00024931,2]
[344600647,1733597447342,-420.0,0.00024961,2]
[344600648,1733597447352,-500.0,0.00024973,2]
[344600649,1733597447361,-260.38330776,0.00024973,2]
[344600650,1733597447372,-500.0,0.00024973,2]
[344600651,1733597447381,-119811.25570558,0.00025,2]
[344600652,1733597447390,-183.72673378,0.00025,2]
[344600653,1733597447400,-46795.84456544,0.00025,2]
[344600654,1733597447411,-204.23362881,0.00025,2]
[344600655,1733597447422,-2577.96976135,0.00025,7]
[344600656,1733597447431,-567.84531129,0.00025,2]
[344600657,1733597447440,-4402.24028908,0.00025,2]
[344600658,1733597447450,-180.9384974,0.00025,5]
[344600659,1733597447460,-509.31,0.00025,7]
[344600660,1733597447470,-150.379999,0.00025,2]
[344600661,1733597447479,-372.0,0.00025,11]
[344600662,1733597447488,-208.139438,0.00025,7]
[344600663,1733597447498,-208.139438,0.00025,7]
[344600664,1733597447508,-208.139438,0.00025,7]
[344600665,1733597447517,-208.139438,0.00025,7]
[344600666,1733597447527,-208.139438,0.00025,7]
[344600667,1733597447536,-208.139438,0.00025,7]
[344600668,1733597447545,-895.250022,0.00025,7]
[344600669,1733597447554,-895.250022,0.00025,7]
[344600670,1733597447563,-895.250022,0.00025,7]
[344600671,1733597447572,-895.250022,0.00025,7]
[344600672,1733597447582,-895.250022,0.00025,7]
[344600673,1733597447591,-895.250022,0.00025,7]
[344600674,1733597447600,-300.904742,0.00025,7]
[344600675,1733597447610,-300.904742,0.00025,7]
[344600676,1733597447627,-300.904742,0.00025,7]
[344600677,1733597447636,-199.66,0.00025,2]
[344600678,1733597447645,-300.904742,0.00025,7]
[344600679,1733597447654,-300.904742,0.00025,7]
[344600680,1733597447663,-300.904742,0.00025,7]
[344600681,1733597447672,-150.84529978,0.00025,2]
[344600682,1733597447681,-150.15,0.00025,2]
[344600683,1733597447691,-272.266511,0.00025,7]
[344600684,1733597447700,-272.266511,0.00025,7]
[344600685,1733597447710,-272.266511,0.00025,7]
[344600686,1733597447719,-272.266511,0.00025,7]
[344600687,1733597447728,-272.266511,0.00025,7]
[344600688,1733597447812,-272.266511,0.00025,7]
[344600689,1733597447821,-461.253446,0.00025,7]
[344600690,1733597447831,-461.253446,0.00025,7]
[344600691,1733597447840,-461.253446,0.00025,7]
[344600692,1733597447849,-461.253446,0.00025,7]
[344600693,1733597447859,-461.253446,0.00025,7]
[344600694,1733597447876,-461.253446,0.00025,7]
[344600695,1733597447885,-454.78033,0.00025,7]
[344600696,1733597447895,-454.78033,0.00025,7]
[344600697,1733597447904,-454.78033,0.00025,7]
[344600698,1733597447914,-454.78033,0.00025,7]
[344600699,1733597447923,-454.78033,0.00025,7]
[344600700,1733597447932,-454.78033,0.00025,7]
[344600701,1733597447942,-200770.26515665,0.00025,2]
[344600702,1733597447955,-32441.60690489,0.00025,2]
[344600709,1733597961767,159.933603,0.00013973,2]
[344600710,1733598575979,159.933603,0.00013973,2]
[344600746,1733598632696,-159.933603,0.00021661,2]
[344600747,1733598632706,-234.9279256,0.00023516,2]
[344600748,1733598632717,-54.05847134,0.0002375,2]
[344600762,1733598638456,-129.12852866,0.0002375,2]
[344600763,1733598638469,-179.78500672,0.00024392,2]
[344600764,1733598638478,-179.78500672,0.00024406,2]
[344600765,1733598638487,-179.78500672,0.00024419,2]
[344600766,1733598638497,-173.72852,0.00024492,2]
[344600767,1733598638506,-3000.0,0.000245,2]
[344600768,1733598638516,-3000.0,0.0002451,2]
[344600769,1733598638526,-300.0,0.00024519,2]
[344600770,1733598638535,-300.0,0.00024519,2]
[344600771,1733598638545,-3000.0,0.0002452,2]
[344600772,1733598638555,-532.0,0.00024521,2]
[344600773,1733598638568,-2169.0,0.00024521,2]
[344600774,1733598638577,-2373.0,0.00024521,2]
[344600775,1733598638587,-3394.966172,0.0002453,2]
[344600776,1733598638596,-191.448,0.00024557,7]
[344600777,1733598638606,-206.63357444,0.00024557,2]
[344600778,1733598638616,-572.04554393,0.00024557,2]
[344600779,1733598638626,-500.0,0.00024657,2]
[344600780,1733598638636,-500.0,0.00024657,2]
[344600781,1733598638646,-500.0,0.00024657,2]
[344600782,1733598638655,-321.93530041,0.00024657,2]
[344600783,1733598638672,-178.06469959,0.00024657,2]
[344600784,1733598638681,-500.0,0.00024657,2]
[344600785,1733598638691,-500.0,0.00024657,2]
[344600786,1733598638701,-500.0,0.00024657,2]
[344600787,1733598638710,-14.78981124,0.00024657,2]
[344600798,1733598640357,-497.84018876,0.00024657,2]
[344600799,1733598640366,-500.0,0.00024657,2]
[344600800,1733598640375,-500.0,0.00024657,2]
[344600801,1733598640385,-500.0,0.00024657,2]
[344600802,1733598640394,-500.0,0.00024657,2]
[344600803,1733598640403,-378.91608424,0.00024657,2]
[344600804,1733598640412,-500.0,0.00024657,2]
[344600805,1733598640422,-500.0,0.00024657,2]
[344600806,1733598640431,-500.0,0.00024657,2]
[344600807,1733598640440,-500.0,0.00024657,2]
[344600808,1733598640450,-500.0,0.00024657,2]
[344600809,1733598640460,-500.0,0.00024657,2]
[344600810,1733598640469,-520.32,0.00024657,2]
[344600811,1733598640479,-500.0,0.00024657,2]
[344600812,1733598640488,-523.77,0.00024657,2]
[344600813,1733598640497,-500.0,0.00024657,2]
[344600814,1733598640506,-500.0,0.00024657,2]
[344600815,1733598640516,-500.0,0.00024657,2]
[344600816,1733598640525,-500.0,0.00024657,2]
[344600817,1733598640534,-500.0,0.00024657,2]
[344600818,1733598640544,-500.0,0.00024657,2]
[344600819,1733598640553,-500.0,0.00024657,2]
[344600820,1733598640562,-500.0,0.00024657,2]
[344600821,1733598640572,-500.0,0.00024657,2]
[344600822,1733598640584,-500.0,0.00024657,2]
[344600823,1733598640593,-701.75,0.00024657,2]
[344600824,1733598640609,-500.0,0.00024657,2]
[344600825,1733598640624,-500.0,0.00024657,2]
[344600826,1733598640634,-500.0,0.00024657,2]
[344600827,1733598640643,-500.0,0.00024657,2]
[344600828,1733598640652,-500.0,0.00024657,2]
[344600829,1733598640662,-500.0,0.00024657,2]
[344600830,1733598640671,-536.74,0.00024657,2]
[344600831,1733598640681,-500.0,0.00024657,2]
[344600832,1733598640690,-500.0,0.00024657,2]
[344600833,1733598640700,-500.0,0.00024657,2]
[344600834,1733598640710,-500.0,0.00024657,2]
[344600835,1733598640720,-500.0,0.00024657,2]
[344600836,1733598640729,-698.62,0.00024657,2]
[344600837,1733598640739,-500.0,0.00024657,2]
[344600838,1733598640753,-500.0,0.00024657,2]
[344600839,1733598640762,-500.0,0.00024657,2]
[344600840,1733598640771,-500.0,0.00024657,2]
[344600841,1733598640780,-500.0,0.00024657,2]
[344600842,1733598640790,-500.0,0.00024657,2]
[344600843,1733598640799,-500.0,0.00024657,2]
[344600844,1733598640808,-500.0,0.00024657,2]
[344600845,1733598640817,-500.0,0.00024657,2]
[344600846,1733598640832,-500.0,0.00024657,2]
[344600847,1733598640840,-500.0,0.00024657,2]
[344600848,1733598640850,-500.0,0.00024657,2]
[344600849,1733598640859,-500.0,0.00024657,2]
[344600850,1733598640869,-500.0,0.00024657,2]
[344600851,1733598640878,-500.0,0.00024657,2]
[344600852,1733598640887,-500.0,0.00024657,2]
[344600853,1733598640896,-500.0,0.00024657,2]
[344600854,1733598640906,-500.0,0.00024657,2]
[344600855,1733598640915,-500.0,0.00024657,2]
[344600856,1733598640924,-500.0,0.00024657,2]
[344600857,1733598640933,-500.0,0.00024657,2]
[344600858,1733598640942,-500.0,0.00024657,2]
[344600859,1733598640951,-500.0,0.00024657,2]
[344600860,1733598640960,-500.0,0.00024657,2]
[344600861,1733598640969,-500.0,0.00024657,2]
[344600862,1733598640978,-273.62495344,0.00024657,2]
[344600863,1733598640987,-500.0,0.00024657,2]
[344600864,1733598640996,-500.0,0.00024657,2]
[344600865,1733598641005,-500.0,0.00024657,2]
[344600866,1733598641013,-500.0,0.00024657,2]
[344600867,1733598641023,-500.0,0.00024657,2]
[344600868,1733598641031,-500.0,0.00024657,2]
[344600869,1733598641040,-688.67,0.00024657,2]
[344600870,1733598641049,-1375.07,0.00024657,2]
[344600871,1733598641059,-500.0,0.00024657,2]
[344600872,1733598641070,-500.0,0.00024657,2]
[344600873,1733598641079,-500.0,0.00024657,2]
[344600874,1733598641088,-6744.33,0.00024657,2]
[344600875,1733598641097,-203.81617447,0.00024657,2]
[344600876,1733598641110,-296.18382553,0.00024657,2]
[344600877,1733598641120,-500.0,0.00024657,2]
[344600878,1733598641129,-236.98404651,0.00024657,2]
[344600879,1733598641141,-263.01595349,0.00024657,2]
[344600880,1733598641150,-230.80613054,0.00024657,2]
[344600887,1733598643888,-269.19386946,0.00024657,2]
[344600888,1733598643898,-500.0,0.00024657,2]
[344600889,1733598643908,-500.0,0.00024657,2]
[344600890,1733598643919,-1115.99,0.00024657,2]
[344600891,1733598643928,-613.1,0.00024657,2]
[344600892,1733598643938,-154.29590989,0.00024657,2]
[344600893,1733598643950,-345.70409011,0.00024657,2]
[344600894,1733598643959,-500.0,0.00024657,2]
[344600895,1733598643968,-500.0,0.00024657,2]
[344600896,1733598643977,-1067.66,0.00024657,2]
[344600897,1733598643987,-500.0,0.00024657,2]
[344600898,1733598643996,-500.0,0.00024657,2]
[344600899,1733598644005,-500.0,0.00024657,2]
[344600900,1733598644015,-513.53,0.00024657,2]
[344600901,1733598644024,-500.0,0.00024657,2]
[344600902,1733598644033,-770.68,0.00024657,2]
[344600903,1733598644042,-860.53,0.00024657,2]
[344600904,1733598644051,-1055.0,0.00024657,2]
[344600905,1733598644060,-1495.76,0.00024657,2]
[344600906,1733598644070,-305.35986862,0.00024657,2]
[344600907,1733598644084,-500.0,0.00024657,2]
[344600908,1733598644094,-268.86838166,0.00024657,2]
[344600911,1733598717373,-181.814,0.0002897,120]
[344600912,1733598717408,-1336.372,0.0003,120]
[344600913,1733599201376,159.933603,0.00013973,2]
[344600914,1733599355051,166.657,0.0002874,120]
[344600916,1733599423264,15.157,0.00024,120]
[344600917,1733599423293,484.843,0.00024,120]
[344600918,1733599424016,431.64,0.00024,120]
[344600919,1733599434577,3000.0,0.0002002,2]
[344600997,1733599834674,159.933603,0.00013973,2]
[344601027,1733599846667,-369.23062761,0.00023213,2]
[344601028,1733599846677,-159.933603,0.00023435,2]
[344601029,1733599846686,-183.3251038,0.00023437,2]
[344601030,1733599846696,-167.72,0.0002375,2]
[344601031,1733599846705,-500.0,0.00024435,2]
[344601032,1733599846715,-300.0,0.00024536,2]
[344601033,1733599846724,-300.0,0.00024536,2]
[344601034,1733599846734,-2373.0,0.00024537,2]
[344601035,1733599846743,-2169.0,0.00024537,2]
[344601036,1733599846753,-406.31772524,0.00024557,2]
[344601037,1733599846763,-191.44864116,0.0002456,7]
[344601038,1733599846773,-2898.02429919,0.0002456,2]
[344601427,1733600380084,1700.0,0.0002002,2]
[344601548,1733601036918,159.933603,0.00013973,2]
[344601560,1733601037668,-167.0,0.00022,2]
[344601561,1733601037678,-155.0,0.00022,2]
[344601562,1733601037687,-167.0,0.00022192,2]
[344601563,1733601037697,-518.1,0.00022918,2]
[344601564,1733601037853,-692.889,0.00022918,2]
[344601570,1733601039664,-582.04603108,0.00022918,2]
[344601571,1733601039772,-1068.31767372,0.00022918,2]
[344601572,1733601039782,-167.0,0.00023014,2]
[344601573,1733601039792,-185.0035287,0.00023113,2]
[344601574,1733601039802,-155.04615072,0.00023582,2]
[344601575,1733601039812,-159.975,0.0002375,2]
[344601576,1733601039821,-643.1836223,0.00024,2]
[344601577,1733601039831,-173.0,0.00024164,2]
[344601578,1733601039842,-300.0,0.0002418,2]
[344601579,1733601039851,-300.0,0.0002418,2]
[344601580,1733601039861,-3178.8827749,0.00024181,2]
[344601595,1733601043179,-5239.90386476,0.00024181,2]
[344601596,1733601043191,-1340.0,0.00024181,2]
[344601597,1733601043287,-1718.43790481,0.00024181,2]
[344601598,1733601043299,-64674.28123028,0.00024181,2]
[344601599,1733601043310,-2319.49870019,0.00024181,2]
[344601609,1733601653434,159.933603,0.00013973,2]
[344601610,1733601836242,5515.0,0.00026,60]
[344601628,1733602231898,-153.644,0.0002343,2]
[344601630,1733602231908,-838.4057955,0.0002354,2]
[344601866,1733602298659,159.933603,0.00013973,2]
[344601868,1733602573555,150.0,0.00026,60]
[344601870,1733602918053,159.933603,0.00013973,2]
[344601952,1733603432084,-2135.36253861,0.00022663,2]
[344601954,1733603432094,-300.0,0.00022762,2]
[344601956,1733603432104,-300.0,0.00022762,2]
[344601958,1733603432113,-1750.5148671,0.00022763,2]
[344602278,1733603443574,-41512.96416916,0.00022763,2]
[344602279,1733603443585,-3851.2381223,0.00022763,2]
[344602288,1733603446985,549.35,0.00024,120]
[344602292,1733603841308,159.933603,0.00013973,2]
[344602299,1733604447585,159.933603,0.00013973,2]
[344602371,1733604632264,-2684.83832225,0.00022173,2]
[344602377,1733604632320,-3477.06452732,0.00022173,2]
[344602379,1733604632332,-450.63,0.00022173,2]
[344602576,1733604638343,-1910.27439254,0.00022173,2]
[344602579,1733604638354,-300.0,0.00022232,2]
[344602582,1733604638363,-300.0,0.00022232,2]
[344602585,1733604638378,-8436.79694746,0.00022233,2]
[344603037,1733604643528,-86.01029465,0.00022233,2]
[344603039,1733604643540,-448.92,0.0002266,2]
[344603041,1733604643549,-8522.80724213,0.00022722,2]
[344603044,1733604643559,-1610.8720909,0.00022744,2]
[344603046,1733604643569,-153.435,0.0002333,2]
[344603048,1733604643578,-305.6452758,0.000234,2]
[344603049,1733604643587,-213.3539429,0.000234,2]
[344603051,1733604643597,-153.0,0.000234,2]
[344603053,1733604643606,-153.0,0.000234,2]
[344603055,1733604643615,-2261.16382651,0.0002344,2]
[344603058,1733604643625,-155.00230754,0.00023523,2]
[344603060,1733604643634,-500.0,0.0002354,2]
[344603062,1733604643644,-500.0,0.0002354,2]
[344603064,1733604643653,-500.0,0.0002354,2]
[344603066,1733604643663,-500.0,0.0002354,2]
[344603068,1733604643673,-263.90883388,0.0002354,2]
[344603070,1733604643683,-460.92762151,0.0002354,2]
[344603072,1733604643692,-151.0,0.0002354,7]
[344603074,1733604643702,-155.115494,0.0002354,7]
[344603076,1733604643711,-268.575007,0.0002354,7]
[344603078,1733604643720,-268.575007,0.0002354,7]
[344603080,1733604643730,-151.0,0.0002354,7]
[344603082,1733604643739,-295.42845447,0.0002354,7]
[344603084,1733604643748,-151.0,0.0002354,7]
[344603086,1733604643757,-151.0,0.0002354,7]
[344603088,1733604643770,-151.0,0.0002354,7]
[344603090,1733604643779,-151.0,0.0002354,7]
[344603092,1733604643788,-151.0,0.0002354,7]
[344603094,1733604643798,-224.690566,0.0002354,7]
[344603096,1733604643808,-224.690566,0.0002354,7]
[344603098,1733604643818,-242.996745,0.0002354,7]
[344603100,1733604643826,-420.0,0.00024153,2]
[344603102,1733604643837,-151.0,0.00024273,7]
[344603104,1733604643847,-268.575007,0.00024273,7]
[344603106,1733604643857,-268.575007,0.00024273,7]
[344603107,1733604643866,-151.0,0.00024273,7]
[344603110,1733604643876,-151.0,0.00024273,7]
[344603112,1733604643886,-151.0,0.00024273,7]
[344603113,1733604643896,-151.0,0.00024273,7]
[344603115,1733604643906,-151.0,0.00024273,7]
[344603118,1733604643916,-151.0,0.00024273,7]
[344603120,1733604643926,-224.690566,0.00024273,7]
[344603122,1733604643935,-224.690566,0.00024273,7]
[344603123,1733604643945,-532.0,0.00024273,2]
[344603126,1733604643954,-2169.0,0.00024273,2]
[344603128,1733604643964,-2373.0,0.00024273,2]
[344603130,1733604643974,-785.70811333,0.00024339,2]
[344603132,1733604643983,-151.0,0.00024438,7]
[344603134,1733604643993,-268.575007,0.00024438,7]
[344603136,1733604644003,-268.575007,0.00024438,7]
[344603138,1733604644012,-151.0,0.00024438,7]
[344603140,1733604644021,-151.0,0.00024438,7]
[344603141,1733604644031,-151.0,0.00024438,7]
[344603143,1733604644041,-151.0,0.00024438,7]
[344603145,1733604644050,-21631.73951813,0.00024439,2]
[344603147,1733604644061,-6679.92382505,0.00024439,2]
[344603149,1733604644071,-151.0,0.00024439,7]
[344603151,1733604644081,-268.575007,0.00024439,7]
[344603153,1733604644090,-268.575007,0.00024439,7]
[344603155,1733604644100,-151.0,0.00024439,7]
[344603157,1733604644110,-151.0,0.00024439,7]
[344603159,1733604644119,-151.0,0.00024439,7]
[344603161,1733604644129,-151.0,0.00024439,7]
[344603163,1733604644139,-151.0,0.00024439,7]
[344603165,1733604644148,-151.0,0.00024439,7]
[344603167,1733604644157,-151.0,0.00024439,7]
[344603169,1733604644167,-151.0,0.00024439,7]
[344603171,1733604644176,-151.0,0.00024439,7]
[344603173,1733604644185,-151.0,0.00024439,7]
[344603175,1733604644195,-224.690566,0.00024439,7]
[344603177,1733604644206,-224.690566,0.00024439,7]
[344603179,1733604644215,-224.690566,0.00024439,7]
[344603181,1733604644225,-224.690566,0.00024439,7]
[344603183,1733604644235,-151.0,0.00024442,7]
[344603185,1733604644244,-2261.16382647,0.00024442,2]
[344603187,1733604644254,-420.0,0.00024455,2]
[344603189,1733604644264,-268.575007,0.00024462,7]
[344603191,1733604644274,-268.575007,0.00024462,7]
[344603193,1733604644283,-151.0,0.00024462,7]
[344603195,1733604644292,-151.0,0.00024462,7]
[344603197,1733604644302,-151.0,0.00024462,7]
[344603199,1733604644311,-151.0,0.00024462,7]
[344603201,1733604644321,-785.70811331,0.00024462,2]
[344603203,1733604644330,-150.0,0.000245,2]
[344603205,1733604644340,-151.0,0.00024512,7]
[344603207,1733604644349,-151.0,0.00024512,7]
[344603209,1733604644359,-224.690566,0.00024512,7]
[344603211,1733604644368,-224.690566,0.00024512,7]
[344603213,1733604644378,-1546.86366043,0.00024512,2]
[344603215,1733604644387,-179.852,0.00024564,7]
[344603217,1733604644397,-785.70811331,0.00024585,2]
[344603219,1733604644406,-179.723534,0.000246,2]
[344603221,1733604644415,-181.37821576,0.00024656,2]
[344603223,1733604644424,-547.71080397,0.00024656,2]
[344603225,1733604644433,-446.92382245,0.00024656,2]
[344603227,1733604644442,-500.0,0.00024656,2]
[344603229,1733604644451,-500.0,0.00024656,2]
[344603231,1733604644461,-500.0,0.00024656,2]
[344603233,1733604644470,-500.0,0.00024656,2]
[344603234,1733604644479,-479.97647131,0.00024656,2]
[344603236,1733604644488,-500.0,0.00024656,2]
[344603238,1733604644498,-500.0,0.00024656,2]
[344603240,1733604644507,-500.0,0.00024656,2]
[344603242,1733604644516,-500.0,0.00024656,2]
[344603244,1733604644525,-448.61379234,0.00024656,2]
[344603246,1733604644534,-500.0,0.00024656,2]
[344603248,1733604644543,-500.0,0.00024656,2]
[344603250,1733604644553,-500.0,0.00024656,2]
[344603252,1733604644563,-500.0,0.00024656,2]
[344603254,1733604644572,-461.00025864,0.00024656,2]
[344603256,1733604644581,-500.0,0.00024656,2]
[344603258,1733604644591,-423.64777105,0.00024656,2]
[344603260,1733604644600,-192.34450777,0.00024656,2]
[344603262,1733604644610,-500.0,0.00024656,2]
[344603264,1733604644619,-354.69989562,0.00024656,2]
[344603266,1733604644629,-500.0,0.00024656,2]
[344603268,1733604644638,-500.0,0.00024656,2]
[344603270,1733604644648,-500.0,0.00024656,2]
[344603272,1733604644657,-250.0,0.00024656,2]
[344603274,1733604644666,-500.0,0.00024656,2]
[344603276,1733604644676,-466.96219937,0.00024656,2]
[344603278,1733604644686,-500.0,0.00024656,2]
[344603281,1733604644695,-500.0,0.00024656,2]
[344603283,1733604644704,-500.0,0.00024656,2]
[344603284,1733604644714,-500.0,0.00024656,2]
[344603287,1733604644724,-640.67570946,0.00024656,2]
[344603289,1733604644733,-500.0,0.00024656,2]
[344603291,1733604644742,-376.85684979,0.00024656,2]
[344603293,1733604644751,-151.0,0.00024656,7]
[344603295,1733604644762,-151.0,0.00024656,7]
[344603297,1733604644774,-151.0,0.00024656,7]
[344603298,1733604644785,-151.0,0.00024656,7]
[344603301,1733604644794,-151.0,0.00024656,7]
[344603303,1733604644804,-151.0,0.00024656,7]
[344603305,1733604644815,-268.575007,0.00024656,7]
[344603307,1733604644824,-268.575007,0.00024656,7]
[344603309,1733604644834,-268.575007,0.00024656,7]
[344603311,1733604644844,-268.575007,0.00024656,7]
[344603312,1733604644853,-268.575007,0.00024656,7]
[344603314,1733604644862,-268.575007,0.00024656,7]
[344603317,1733604644872,-268.575007,0.00024656,7]
[344603329,1733604644984,-268.575007,0.00024656,7]
[344603331,1733604644995,-151.0,0.00024656,7]
[344603333,1733604645004,-151.0,0.00024656,7]
[344603335,1733604645014,-151.0,0.00024656,7]
[344603337,1733604645023,-151.0,0.00024656,7]
[344603339,1733604645033,-151.0,0.00024656,7]
[344603341,1733604645043,-151.0,0.00024656,7]
[344603343,1733604645052,-151.0,0.00024656,7]
[344603345,1733604645062,-151.0,0.00024656,7]
[344603347,1733604645072,-151.0,0.00024656,7]
[344603349,1733604645081,-151.0,0.00024656,7]
[344603350,1733604645091,-151.0,0.00024656,7]
[344603351,1733604645100,-151.0,0.00024656,7]
[344603352,1733604645110,-151.0,0.00024656,7]
[344603353,1733604645119,-200.520668,0.00024656,7]
[344603354,1733604645131,-151.0,0.00024656,7]
[344603355,1733604645143,-151.0,0.00024656,7]
[344603356,1733604645153,-151.0,0.00024656,7]
[344603357,1733604645162,-151.0,0.00024656,7]
[344603358,1733604645171,-151.0,0.00024656,7]
[344603359,1733604645180,-161.68198,0.00024656,7]
[344603360,1733604645190,-224.690566,0.00024656,7]
[344603361,1733604645201,-224.690566,0.00024656,7]
[344603362,1733604645210,-224.690566,0.00024656,7]
[344603363,1733604645220,-224.690566,0.00024656,7]
[344603364,1733604645229,-224.690566,0.00024656,7]
[344603365,1733604645238,-224.690566,0.00024656,7]
[344603366,1733604645248,-500.0,0.00024657,2]
[344603367,1733604645257,-500.0,0.00024657,2]
[344603369,1733604645267,-500.0,0.00024657,2]
[344603371,1733604645276,-500.0,0.00024657,2]
[344603373,1733604645285,-500.0,0.00024657,2]
[344603375,1733604645294,-500.0,0.00024657,2]
[344603377,1733604645303,-500.0,0.00024657,2]
[344603379,1733604645313,-500.0,0.00024657,2]
[344603381,1733604645322,-500.0,0.00024657,2]
[344603383,1733604645331,-500.0,0.00024657,2]
[344603385,1733604645341,-500.0,0.00024657,2]
[344603387,1733604645350,-500.0,0.00024657,2]
[344603389,1733604645359,-444.35270761,0.00024657,2]
[344603391,1733604645369,-500.0,0.00024657,2]
[344603393,1733604645383,-500.0,0.00024657,2]
[344603395,1733604645392,-500.0,0.00024657,2]
[344603397,1733604645402,-500.0,0.00024657,2]
[344603399,1733604645411,-500.0,0.00024657,2]
[344603401,1733604645420,-500.0,0.00024657,2]
[344603403,1733604645429,-500.0,0.00024657,2]
[344603405,1733604645437,-500.0,0.00024657,2]
[344603407,1733604645446,-500.0,0.00024657,2]
[344603409,1733604645455,-500.0,0.00024657,2]
[344603411,1733604645464,-624.76445392,0.00024657,2]
[344603413,1733604645473,-500.0,0.00024657,2]
[344603415,1733604645483,-500.0,0.00024657,2]
[344603417,1733604645492,-500.0,0.00024657,2]
[344603419,1733604645501,-500.0,0.00024657,2]
[344603421,1733604645513,-500.0,0.00024657,2]
[344603423,1733604645522,-500.0,0.00024657,2]
[344603425,1733604645531,-500.0,0.00024657,2]
[344603427,1733604645540,-500.0,0.00024657,2]
[344603429,1733604645549,-500.0,0.00024657,2]
[344603431,1733604645559,-672.51,0.00024657,2]
[344603433,1733604645568,-500.0,0.00024657,2]
[344603435,1733604645577,-514.38,0.00024657,2]
[344603437,1733604645587,-500.0,0.00024657,2]
[344603439,1733604645596,-500.0,0.00024657,2]
[344603441,1733604645605,-500.0,0.00024657,2]
[344603443,1733604645615,-500.0,0.00024657,2]
[344603445,1733604645624,-500.0,0.00024657,2]
[344603447,1733604645636,-500.0,0.00024657,2]
[344603449,1733604645645,-500.0,0.00024657,2]
[344603451,1733604645655,-500.0,0.00024657,2]
[344603453,1733604645666,-500.0,0.00024657,2]
[344603455,1733604645675,-500.0,0.00024657,2]
[344603457,1733604645685,-500.0,0.00024657,2]
[344603459,1733604645694,-500.0,0.00024657,2]
[344603461,1733604645704,-500.0,0.00024657,2]
[344603463,1733604645714,-500.0,0.00024657,2]
[344603465,1733604645723,-500.0,0.00024657,2]
[344603467,1733604645733,-500.0,0.00024657,2]
[344603469,1733604645743,-500.0,0.00024657,2]
[344603471,1733604645753,-500.0,0.00024657,2]
[344603473,1733604645765,-500.0,0.00024657,2]
[344603475,1733604645776,-151.0,0.00024657,7]
[344603477,1733604645785,-500.0,0.00024657,2]
[344603479,1733604645795,-500.0,0.00024657,2]
[344603481,1733604645806,-525.87255711,0.00024657,2]
[344603483,1733604645815,-500.0,0.00024657,2]